fUSD/lending_fUSD_20260519
["ID","MTS","AMOUNT","RATE_DAILY","PERIOD"]
[422628699,1779173454000,-157.0,0.00030123,30]
[422628710,1779173454000,-300.0,0.00030129,10]
[422628700,1779173454000,-154.0,0.00030126,30]
[422628701,1779173454000,-155.0,0.00030126,30]
[422628703,1779173454000,-611.0,0.00030126,30]
[422628702,1779173454000,-387.0,0.00030126,30]
[422628709,1779173454000,-666.0,0.00030129,10]
[422628707,1779173454000,-151.0,0.00030127,7]
[422628704,1779173454000,-154.0,0.00030126,30]
[422628705,1779173454000,-153.0,0.00030126,30]
[422628708,1779173454000,-300.0,0.00030129,10]
[422628706,1779173454000,-151.0,0.00030127,7]
[422628677,1779173454000,-400.0,0.0003007,2]
[422628685,1779173454000,-165.0,0.00030107,3]
[422628684,1779173454000,-1500.0,0.000301,2]
[422628681,1779173454000,-194.168,0.000301,22]
[422628647,1779173454000,-165.59661619,0.0003,2]
[422628664,1779173454000,-399.0,0.00030017,2]
[422628654,1779173454000,-151.0,0.0003,7]
[422628655,1779173454000,-200.0,0.0003,2]
[422628653,1779173454000,-151.0,0.0003,7]
[422628665,1779173454000,-162.0,0.0003002,30]
[422628656,1779173454000,-200.0,0.0003,2]
[422628658,1779173454000,-650.0,0.0003,2]
[422628662,1779173454000,-150.0,0.00030006,7]
[422628659,1779173454000,-200.0,0.0003,2]
[422628679,1779173454000,-338.75437956,0.00030097,7]
[422628657,1779173454000,-200.0,0.0003,2]
[422628663,1779173454000,-399.0,0.00030015,2]
[422628660,1779173454000,-200.0,0.0003,2]
[422628667,1779173454000,-151.0,0.0003003,7]
[422628678,1779173454000,-399.0,0.0003009,2]
[422628682,1779173454000,-194.168,0.000301,22]
[422628661,1779173454000,-402.63167588,0.00030001,2]
[422628675,1779173454000,-150.0,0.00030058,7]
[422628676,1779173454000,-1000.0,0.00030062,7]
[422628673,1779173454000,-150.0,0.00030037,2]
[422628686,1779173454000,-150.0,0.0003011,7]
[422628672,1779173454000,-150.0,0.00030037,2]
[422628670,1779173454000,-374.26042252,0.00030032,2]
[422628669,1779173454000,-584.49392238,0.0003003,2]
[422628666,1779173454000,-399.0,0.00030022,2]
[422628668,1779173454000,-150.97290772,0.0003003,2]
[422628671,1779173454000,-156323.9658838,0.00030033,7]
[422628711,1779173455000,-178.79387469,0.00030129,10]
[422628714,1779173455000,-300.0,0.00030129,10]
[422628713,1779173455000,-690.56488704,0.00030129,10]
[422628722,1779173455000,-300.0,0.00030129,10]
[422628712,1779173455000,-300.0,0.00030129,10]
[422628716,1779173455000,-300.0,0.00030129,10]
[422628715,1779173455000,-300.0,0.00030129,10]
[422628717,1779173455000,-300.0,0.00030129,10]
[422628719,1779173455000,-300.0,0.00030129,10]
[422628725,1779173455000,-878.68686161,0.00025706,2]
[422628723,1779173455000,-300.0,0.00030129,10]
[422628721,1779173455000,-300.0,0.00030129,10]
[422628720,1779173455000,-666.0,0.00030129,10]
[422628718,1779173455000,-670.98749453,0.00030129,10]
[422628724,1779173455000,-526647.00313815,0.0003013,7]
[422628726,1779173500000,-300.0,0.0001366,2]
[422628727,1779173747000,-781.928,0.00013388,2]
[422628728,1779173754000,1830.87196374,0.0003,120]
[422628731,1779173874000,2000.0,0.00028868,120]
[422628733,1779173911000,155.58,9.515e-05,2]
[422628734,1779173994000,-214.7464576,0.00013523,2]
[422628735,1779174001000,235.45894331,0.00018786,120]
[422628736,1779174002000,1581.18,0.0001,2]
[422628738,1779174193000,1727.08156625,0.00015,30]
[422628739,1779174245000,-177.30385237,0.00013487,2]
[422628740,1779174327000,1641.03436796,0.00015,30]
[422628742,1779174335000,10000.0,0.000163,30]
[422628743,1779174340000,538.54289288,0.00015,30]
[422628745,1779174489000,-300.0,0.00012843,2]
[422628746,1779174541000,1000.0,0.00030135,120]
[422628748,1779174600000,150.0,0.0002307,120]
[422628749,1779174601000,203.18841497,0.0002307,120]
[422628772,1779174632000,-1000.0,0.0001356,2]
[422628774,1779174632000,-772.0289,0.00013561,2]
[422628777,1779174632000,-502.0383,0.00013561,2]
[422628779,1779174632000,-14172.3622,0.00013561,2]
[422628782,1779174632000,-5000.0,0.00013561,2]
[422628780,1779174632000,-3038.7241,0.00013561,2]
[422628787,1779174632000,-8484.49701093,0.00013575,2]
[422628789,1779174632000,-1215.06501316,0.00013575,2]
[422628791,1779174632000,-150.0,0.00013638,2]
[422628806,1779174632000,-500.0,0.00013698,2]
[422628804,1779174632000,-517.71281634,0.00013698,2]
[422628770,1779174632000,-360.54032943,0.00013523,2]
[422628793,1779174632000,-625.543,0.0001366,2]
[422628785,1779174632000,-12454.75153975,0.00013575,2]
[422628767,1779174632000,-150.0,0.00013488,2]
[422628756,1779174632000,-150.0,0.00012971,2]
[422628764,1779174632000,-150.0,0.00013488,2]
[422628751,1779174632000,-200.0,0.00012806,2]
[422628752,1779174632000,-158.37,0.0001283,2]
[422628754,1779174632000,-11111.71,0.00012844,2]
[422628755,1779174632000,-19611.25,0.00012875,2]
[422628796,1779174632000,-500.0,0.00013698,2]
[422628757,1779174632000,-1251.35,0.00013057,2]
[422628768,1779174632000,-150.0,0.00013488,2]
[422628761,1779174632000,-150.0,0.00013488,2]
[422628758,1779174632000,-163.43,0.0001332,2]
[422628760,1779174632000,-284.58525916,0.00013488,2]
[422628763,1779174632000,-152.75252402,0.00013488,2]
[422628765,1779174632000,-150.0,0.00013488,2]
[422628766,1779174632000,-151.71029879,0.00013488,2]
[422628762,1779174632000,-150.0,0.00013488,2]
[422628759,1779174632000,-1788.03,0.0001332,2]
[422628795,1779174632000,-150.0,0.00013675,2]
[422628753,1779174632000,-1200.0,0.00012843,2]
[422628800,1779174632000,-500.0,0.00013698,2]
[422628837,1779174632000,-500.0,0.00013698,2]
[422628840,1779174632000,-7264.09999321,0.00013699,2]
[422628836,1779174632000,-500.0,0.00013698,2]
[422628838,1779174632000,-500.0,0.00013698,2]
[422628841,1779174632000,-7008.29000679,0.00013699,2]
[422628842,1779174632000,-2500.0,0.00013699,2]
[422628835,1779174632000,-500.0,0.00013698,2]
[422628843,1779174632000,-200.0,0.00013699,2]
[422628846,1779174632000,-150.0,0.00013787,2]
[422628845,1779174632000,-8484.49701086,0.00013722,2]
[422628847,1779174632000,-208.58623393,0.00013793,2]
[422628848,1779174632000,-500.0,0.00013822,2]
[422628849,1779174632000,-76.57167002,0.00013822,2]
[422628797,1779174632000,-500.0,0.00013698,2]
[422628844,1779174632000,-12454.7515397,0.00013722,2]
[422628824,1779174632000,-500.0,0.00013698,2]
[422628839,1779174632000,-167.32,0.00013699,2]
[422628832,1779174632000,-575.59111792,0.00013698,2]
[422628808,1779174632000,-349.78123329,0.00013698,2]
[422628833,1779174632000,-500.0,0.00013698,2]
[422628798,1779174632000,-518.50412553,0.00013698,2]
[422628802,1779174632000,-500.0,0.00013698,2]
[422628810,1779174632000,-500.0,0.00013698,2]
[422628812,1779174632000,-501.91072122,0.00013698,2]
[422628820,1779174632000,-500.0,0.00013698,2]
[422628814,1779174632000,-500.0,0.00013698,2]
[422628816,1779174632000,-500.0,0.00013698,2]
[422628830,1779174632000,-500.0,0.00013698,2]
[422628822,1779174632000,-500.0,0.00013698,2]
[422628834,1779174632000,-209.60104111,0.00013698,2]
[422628826,1779174632000,-500.0,0.00013698,2]
[422628828,1779174632000,-504.19636444,0.00013698,2]
[422628818,1779174632000,-500.0,0.00013698,2]
[422628876,1779174638000,-150.0,0.0001405,2]
[422628871,1779174638000,-12454.7515397,0.00013869,2]
[422628873,1779174638000,-150.0,0.00013937,2]
[422628874,1779174638000,-12454.7515397,0.00014017,2]
[422628879,1779174638000,-1680.0,0.00014127,2]
[422628872,1779174638000,-8484.49701086,0.00013869,2]
[422628881,1779174638000,-8484.49701086,0.00014164,2]
[422628877,1779174638000,-300.0,0.00014087,2]
[422628875,1779174638000,-8484.49701086,0.00014017,2]
[422628880,1779174638000,-12454.7515397,0.00014164,2]
[422628882,1779174638000,-1215.06501316,0.00014188,2]
[422628884,1779174638000,-150.0,0.00014237,2]
[422628870,1779174638000,-150.0,0.00013862,2]
[422628878,1779174638000,-150.0,0.00014087,2]
[422628869,1779174638000,-150.0,0.00013862,2]
[422628854,1779174638000,-500.0,0.00013822,2]
[422628867,1779174638000,-500.0,0.00013822,2]
[422628883,1779174638000,-150.0,0.00014237,2]
[422628853,1779174638000,-423.42832998,0.00013822,2]
[422628857,1779174638000,-500.0,0.00013822,2]
[422628855,1779174638000,-472.85034506,0.00013822,2]
[422628859,1779174638000,-500.0,0.00013822,2]
[422628858,1779174638000,-500.0,0.00013822,2]
[422628868,1779174638000,-500.0,0.00013822,2]
[422628856,1779174638000,-500.0,0.00013822,2]
[422628861,1779174638000,-500.0,0.00013822,2]
[422628863,1779174638000,-500.0,0.00013822,2]
[422628864,1779174638000,-500.0,0.00013822,2]
[422628862,1779174638000,-500.0,0.00013822,2]
[422628865,1779174638000,-500.0,0.00013822,2]
[422628866,1779174638000,-500.0,0.00013822,2]
[422628860,1779174638000,-500.0,0.00013822,2]
[422628885,1779174638000,-150.0,0.00014237,2]
[422628893,1779174638000,-12454.7515397,0.00014311,2]
[422628889,1779174638000,-500.0,0.00014309,2]
[422628909,1779174638000,-11854.49143044,0.00014724,2]
[422628906,1779174638000,-11854.4914305,0.00014653,2]
[422628908,1779174638000,-11854.49143044,0.00014688,2]
[422628907,1779174638000,-150.0,0.00014687,2]
[422628910,1779174638000,-500.0,0.00014752,2]
[422628912,1779174638000,-247.70971045,0.00014752,2]
[422628905,1779174638000,-150.0,0.00014612,2]
[422628913,1779174638000,-12454.7515397,0.00014753,2]
[422628917,1779174638000,-1215.06501316,0.000148,2]
[422628916,1779174638000,-150.0,0.00014799,2]
[422628918,1779174638000,-150.0,0.00014836,2]
[422628919,1779174638000,-25000.0,0.00014874,3]
[422628920,1779174638000,-25000.0,0.00014882,3]
[422628921,1779174638000,-25000.0,0.00014891,3]
[422628886,1779174638000,-150.0,0.00014237,2]
[422628903,1779174638000,-8484.49701086,0.00014606,2]
[422628915,1779174638000,-11854.49143044,0.00014759,2]
[422628904,1779174638000,-150.0,0.00014612,2]
[422628914,1779174638000,-8484.49701086,0.00014753,2]
[422628890,1779174638000,-500.0,0.00014309,2]
[422628887,1779174638000,-500.0,0.00014309,2]
[422628888,1779174638000,-500.0,0.00014309,2]
[422628892,1779174638000,-500.0,0.00014309,2]
[422628894,1779174638000,-8484.49701086,0.00014311,2]
[422628900,1779174638000,-8484.49701086,0.00014458,2]
[422628891,1779174638000,-500.0,0.00014309,2]
[422628896,1779174638000,-150.0,0.00014387,2]
[422628895,1779174638000,-167.32,0.00014384,2]
[422628901,1779174638000,-150.0,0.00014537,2]
[422628897,1779174638000,-150.0,0.00014424,2]
[422628898,1779174638000,-699.95,0.00014437,2]
[422628902,1779174638000,-12454.7515397,0.00014606,2]
[422628899,1779174638000,-12454.7515397,0.00014458,2]
[422628932,1779174639000,-8633.0,0.00014959,2]
[422628938,1779174639000,-229.00156449,0.00014986,2]
[422628937,1779174639000,-170.41262241,0.00014986,2]
[422628934,1779174639000,-254.67783396,0.00014986,2]
[422628933,1779174639000,-152.10400649,0.00014986,2]
[422628935,1779174639000,-157.50595746,0.00014986,2]
[422628936,1779174639000,-153.99235667,0.00014986,2]
[422628929,1779174639000,-949.2157483,0.000149,2]
[422628923,1779174639000,-25000.0,0.000149,3]
[422628928,1779174639000,-175.68466802,0.000149,2]
[422628942,1779174639000,-150.0,0.00014996,2]
[422628930,1779174639000,-982.49583924,0.000149,2]
[422628927,1779174639000,-3104.64663851,0.000149,2]
[422628926,1779174639000,-8484.49701086,0.000149,2]
[422628924,1779174639000,-12454.7515397,0.000149,2]
[422628925,1779174639000,-10503.45168562,0.000149,2]
[422628922,1779174639000,-5676.58636403,0.000149,3]
[422628931,1779174639000,-290.93114458,0.00014908,2]
[422628939,1779174639000,-1186.33809915,0.0001499,2]
[422628954,1779174639000,-300.0,0.00014999,2]
[422628941,1779174639000,-1186.33809915,0.0001499,2]
[422628943,1779174639000,-151.0,0.00014997,2]
[422628961,1779174639000,-802.67248934,0.00015,2]
[422628960,1779174639000,-513.08522373,0.00015,2]
[422628959,1779174639000,-593777.89360055,0.00015,2]
[422628956,1779174639000,-10959560.63794647,0.00015,2]
[422628957,1779174639000,-156.91,0.00015,2]
[422628952,1779174639000,-666.0,0.00014999,2]
[422628953,1779174639000,-300.0,0.00014999,2]
[422628955,1779174639000,-692.46000937,0.00014999,2]
[422628958,1779174639000,-4170380.09331861,0.00015,2]
[422628950,1779174639000,-503.07025712,0.00014999,2]
[422628949,1779174639000,-174.690385,0.00014999,2]
[422628947,1779174639000,-500.0,0.00014999,2]
[422628948,1779174639000,-547.59765033,0.00014999,2]
[422628944,1779174639000,-160.87287046,0.00014999,2]
[422628945,1779174639000,-500.0,0.00014999,2]
[422628946,1779174639000,-500.0,0.00014999,2]
[422628940,1779174639000,-1186.33809915,0.0001499,2]
[422628951,1779174639000,-300.0,0.00014999,2]
[422628986,1779174640000,-349.19976428,0.00016921,2]
[422628975,1779174640000,-150.99,0.0001531,2]
[422628978,1779174640000,-2351.0,0.0001554,2]
[422628981,1779174640000,-151.0,0.00016438,2]
[422628977,1779174640000,-9999.99,0.0001531,2]
[422628985,1779174640000,-5624.06535761,0.000165,2]
[422628984,1779174640000,-151.0,0.00016438,2]
[422628982,1779174640000,-151.0,0.00016438,2]
[422628983,1779174640000,-151.0,0.00016438,2]
[422628979,1779174640000,-6623.73,0.00016116,2]
[422628980,1779174640000,-490.4,0.00016438,2]
[422628976,1779174640000,-6216.62,0.0001531,2]
[422628963,1779174640000,-723198.69875464,0.00015,2]
[422628970,1779174640000,-159.28972,0.00015068,2]
[422628971,1779174640000,-159.28972,0.00015068,2]
[422628968,1779174640000,-165.0,0.00015,2]
[422628969,1779174640000,-165.0,0.00015,2]
[422628972,1779174640000,-159.28972,0.00015068,2]
[422628967,1779174640000,-165.0,0.00015,2]
[422628966,1779174640000,-151.0,0.00015,2]
[422628965,1779174640000,-151.0,0.00015,2]
[422628987,1779174640000,-743.0,0.00017094,2]
[422628964,1779174640000,-151.0,0.00015,2]
[422628962,1779174640000,-11854.49143044,0.00014794,2]
[422628974,1779174640000,-300.0,0.00015309,2]
[422628990,1779174640000,-500.0,0.00017244,2]
[422628973,1779174640000,-159.28972,0.00015068,2]
[422628988,1779174640000,-1162.06431757,0.00017231,2]
[422628989,1779174640000,-500.0,0.00017244,2]
[422629016,1779174640000,-151.0,0.00017244,2]
[422629014,1779174640000,-151.0,0.00017244,2]
[422629011,1779174640000,-151.0,0.00017244,2]
[422629013,1779174640000,-151.0,0.00017244,2]
[422629012,1779174640000,-151.0,0.00017244,2]
[422629010,1779174640000,-151.0,0.00017244,2]
[422629009,1779174640000,-151.0,0.00017244,2]
[422629005,1779174640000,-151.0,0.00017244,2]
[422629007,1779174640000,-2005.9555727,0.00017244,2]
[422629006,1779174640000,-151.0,0.00017244,2]
[422628999,1779174640000,-151.0,0.00017244,2]
[422629003,1779174640000,-151.0,0.00017244,2]
[422629015,1779174640000,-151.0,0.00017244,2]
[422629001,1779174640000,-151.0,0.00017244,2]
[422629004,1779174640000,-151.0,0.00017244,2]
[422628994,1779174640000,-151.0,0.00017244,2]
[422628995,1779174640000,-151.0,0.00017244,2]
[422628991,1779174640000,-500.0,0.00017244,2]
[422628993,1779174640000,-151.0,0.00017244,2]
[422628997,1779174640000,-151.0,0.00017244,2]
[422628992,1779174640000,-277.53845302,0.00017244,2]
[422628998,1779174640000,-151.0,0.00017244,2]
[422629000,1779174640000,-151.0,0.00017244,2]
[422629002,1779174640000,-151.0,0.00017244,2]
[422629008,1779174640000,-151.0,0.00017244,2]
[422628996,1779174640000,-151.0,0.00017244,2]
[422629066,1779174641000,-397.0,0.0002,2]
[422629045,1779174641000,-2157.14243826,0.0001834,2]
[422629047,1779174641000,-156.91,0.000184,2]
[422629048,1779174641000,-490.4,0.0001841,2]
[422629049,1779174641000,-1207.51294767,0.000185,2]
[422629050,1779174641000,-1207.51294767,0.000187,2]
[422629052,1779174641000,-325.55406919,0.00019,2]
[422629051,1779174641000,-2236.95670848,0.00018888,2]
[422629053,1779174641000,-151.0,0.00019178,2]
[422629055,1779174641000,-2319.72410669,0.00019436,2]
[422629044,1779174641000,-1207.51294767,0.000182,2]
[422629062,1779174641000,-2866.495056,0.0002,2]
[422629056,1779174641000,-2782.0,0.00019436,5]
[422629069,1779174641000,-346.0,0.0002,2]
[422629054,1779174641000,-2000.0,0.00019245,2]
[422629070,1779174641000,-1372.3965503,0.0002,2]
[422629058,1779174641000,-166.66,0.00019884,2]
[422629060,1779174641000,-642.07659596,0.00019984,2]
[422629064,1779174641000,-251.0,0.0002,2]
[422629072,1779174641000,-10792.83,0.0002,2]
[422629071,1779174641000,-5898.0,0.0002,2]
[422629073,1779174641000,-1030.91,0.00020103,2]
[422629046,1779174641000,-1207.51294767,0.000184,2]
[422629075,1779174641000,-490.4,0.00020381,2]
[422629068,1779174641000,-308.0,0.0002,2]
[422629043,1779174641000,-6163.16745885,0.00018,2]
[422629032,1779174641000,-152.0,0.00017922,2]
[422629041,1779174641000,-174.11907889,0.00017922,2]
[422629074,1779174641000,-699.95,0.00020212,2]
[422629018,1779174641000,-151.0,0.00017244,2]
[422629017,1779174641000,-151.0,0.00017244,2]
[422629019,1779174641000,-151.0,0.00017244,2]
[422629020,1779174641000,-151.0,0.00017244,2]
[422629021,1779174641000,-151.0,0.00017244,2]
[422629022,1779174641000,-151.0,0.00017244,2]
[422629023,1779174641000,-151.0,0.00017244,2]
[422629024,1779174641000,-151.0,0.00017244,2]
[422629025,1779174641000,-151.0,0.00017244,2]
[422629026,1779174641000,-618.59521715,0.000177,2]
[422629042,1779174641000,-1207.51294767,0.00018,2]
[422629027,1779174641000,-628.71826054,0.00017718,2]
[422629030,1779174641000,-500.0,0.00017808,2]
[422629031,1779174641000,-397.00175674,0.00017808,2]
[422629028,1779174641000,-2080.17592889,0.00017792,2]
[422629033,1779174641000,-152.0,0.00017922,2]
[422629034,1779174641000,-152.0,0.00017922,2]
[422629035,1779174641000,-152.0,0.00017922,2]
[422629036,1779174641000,-152.0,0.00017922,2]
[422629037,1779174641000,-152.0,0.00017922,2]
[422629040,1779174641000,-152.0,0.00017922,2]
[422629038,1779174641000,-152.0,0.00017922,2]
[422629039,1779174641000,-152.0,0.00017922,2]
[422629029,1779174641000,-500.0,0.00017808,2]
[422629076,1779174641000,-166.66,0.0002054,2]
[422629087,1779174641000,-166.66,0.00021197,2]
[422629080,1779174641000,-251.0,0.00021,2]
[422629109,1779174641000,-308.0,0.000232,2]
[422629108,1779174641000,-315.0,0.000232,2]
[422629112,1779174641000,-3544.0,0.00023486,2]
[422629115,1779174641000,-150.159,0.00023486,2]
[422629107,1779174641000,-1000.0,0.000232,2]
[422629111,1779174641000,-625.0,0.00023486,2]
[422629110,1779174641000,-935.097,0.00023486,2]
[422629113,1779174641000,-1354.0,0.00023486,2]
[422629117,1779174641000,-900.0,0.00023523,7]
[422629119,1779174641000,-150.0,0.00023552,2]
[422629118,1779174641000,-150.0,0.00023552,2]
[422629105,1779174641000,-346.0,0.00023,2]
[422629116,1779174641000,-2550.0,0.00023523,2]
[422629126,1779174641000,-192.979,0.00023986,2]
[422629124,1779174641000,-230.306,0.00023986,2]
[422629125,1779174641000,-238.138,0.00023986,2]
[422629121,1779174641000,-661.81864313,0.00023744,2]
[422629123,1779174641000,-3633.0,0.00023835,2]
[422629122,1779174641000,-1230.669,0.00023835,2]
[422629128,1779174641000,-166.12,0.00023986,2]
[422629127,1779174641000,-150.352,0.00023986,2]
[422629130,1779174641000,-220.59,0.00023986,2]
[422629077,1779174641000,-661.81864313,0.00020548,2]
[422629131,1779174641000,-150.972,0.00023986,2]
[422629120,1779174641000,-151.0,0.00023552,2]
[422629106,1779174641000,-166.66,0.00023166,2]
[422629129,1779174641000,-250.0,0.00023986,2]
[422629114,1779174641000,-1270.0,0.00023486,2]
[422629104,1779174641000,-308.0,0.00023,2]
[422629078,1779174641000,-1162.06431751,0.00020861,2]
[422629081,1779174641000,-397.0,0.00021,2]
[422629082,1779174641000,-308.0,0.00021,2]
[422629084,1779174641000,-166.0,0.00021,2]
[422629083,1779174641000,-346.0,0.00021,2]
[422629085,1779174641000,-3484.0,0.0002104,5]
[422629089,1779174641000,-661.81864313,0.00021613,2]
[422629088,1779174641000,-6466.77,0.0002137,2]
[422629090,1779174641000,-2000.0,0.00021651,2]
[422629086,1779174641000,-450.8,0.00021121,2]
[422629091,1779174641000,-166.66,0.00021853,2]
[422629079,1779174641000,-156.91,0.000209,2]
[422629101,1779174641000,-661.81864313,0.00022679,2]
[422629099,1779174641000,-450.8,0.00022491,2]
[422629102,1779174641000,-251.0,0.00023,2]
[422629092,1779174641000,-5000.0,0.00021918,2]
[422629094,1779174641000,-397.0,0.00022,2]
[422629093,1779174641000,-251.0,0.00022,2]
[422629097,1779174641000,-2610.81,0.00022,2]
[422629096,1779174641000,-346.0,0.00022,2]
[422629098,1779174641000,-490.4,0.00022353,2]
[422629095,1779174641000,-308.0,0.00022,2]
[422629103,1779174641000,-397.0,0.00023,2]
[422629100,1779174641000,-166.66,0.00022509,2]
[422629166,1779174642000,-2697.3,0.000264,2]
[422629168,1779174642000,-3371.18320883,0.00026467,2]
[422629167,1779174642000,-2000.0,0.00026462,2]
[422629165,1779174642000,-258.862199,0.00026397,2]
[422629160,1779174642000,-500.0,0.00025999,2]
[422629163,1779174642000,-490.4,0.00026296,2]
[422629161,1779174642000,-500.0,0.00025999,2]
[422629162,1779174642000,-5151.04558368,0.00026,2]
[422629158,1779174642000,-5151.04558368,0.000258,2]
[422629164,1779174642000,-5151.04558368,0.000263,2]
[422629170,1779174642000,-625.0,0.00026486,2]
[422629176,1779174642000,-150.0,0.00026552,2]
[422629172,1779174642000,-1354.0,0.00026486,2]
[422629171,1779174642000,-3544.0,0.00026486,2]
[422629173,1779174642000,-1270.0,0.00026486,2]
[422629177,1779174642000,-150.0,0.00026552,2]
[422629175,1779174642000,-5151.04558368,0.000265,2]
[422629179,1779174642000,-259.910273,0.00026792,2]
[422629174,1779174642000,-150.0,0.00026486,2]
[422629178,1779174642000,-3371.18320883,0.00026742,2]
[422629180,1779174642000,-311.8923276,0.00026792,2]
[422629159,1779174642000,-661.81864313,0.00025875,2]
[422629181,1779174642000,-5151.04558368,0.000268,2]
[422629169,1779174642000,-927.0,0.00026486,2]
[422629154,1779174642000,-5578.02484067,0.00025,2]
[422629142,1779174642000,-490.4,0.00024324,2]
[422629157,1779174642000,-5151.04558368,0.000255,2]
[422629189,1779174642000,-1250.0,0.00026961,2]
[422629134,1779174642000,-397.0,0.00024,2]
[422629133,1779174642000,-251.0,0.00024,2]
[422629132,1779174642000,-151.0,0.00023986,2]
[422629136,1779174642000,-346.0,0.00024,2]
[422629135,1779174642000,-308.0,0.00024,2]
[422629137,1779174642000,-2000.0,0.00024057,2]
[422629139,1779174642000,-764.0,0.00024127,10]
[422629138,1779174642000,-200.0,0.00024077,2]
[422629140,1779174642000,-406.0,0.00024127,10]
[422629143,1779174642000,-1162.06431751,0.00024491,2]
[422629141,1779174642000,-467.25,0.00024297,7]
[422629144,1779174642000,-749.6,0.00024658,2]
[422629146,1779174642000,-1867.49,0.00024658,2]
[422629148,1779174642000,-5151.04558368,0.00025,2]
[422629145,1779174642000,-1000.0,0.00024658,2]
[422629147,1779174642000,-661.81864313,0.0002481,2]
[422629150,1779174642000,-400.0,0.00025,2]
[422629151,1779174642000,-323.0,0.00025,2]
[422629149,1779174642000,-262.0,0.00025,2]
[422629152,1779174642000,-355.0,0.00025,2]
[422629153,1779174642000,-158.12,0.00025,2]
[422629155,1779174642000,-2610.81,0.00025036,7]
[422629156,1779174642000,-5151.04558368,0.000253,2]
[422629182,1779174642000,-1224.0,0.00026835,2]
[422629195,1779174642000,-3371.18320883,0.00026977,2]
[422629183,1779174642000,-3633.0,0.00026835,2]
[422629222,1779174642000,-300.0,0.00027267,2]
[422629214,1779174642000,-200.0,0.00027216,2]
[422629215,1779174642000,-200.0,0.00027216,2]
[422629218,1779174642000,-200.0,0.00027216,2]
[422629219,1779174642000,-317.0,0.00027216,2]
[422629217,1779174642000,-200.0,0.00027216,2]
[422629220,1779174642000,-3371.18320883,0.00027256,2]
[422629216,1779174642000,-200.0,0.00027216,2]
[422629221,1779174642000,-300.0,0.00027267,2]
[422629224,1779174642000,-300.0,0.00027267,2]
[422629225,1779174642000,-300.0,0.00027267,2]
[422629223,1779174642000,-300.0,0.00027267,2]
[422629226,1779174642000,-300.0,0.00027267,2]
[422629230,1779174642000,-259.0,0.00027267,2]
[422629227,1779174642000,-300.0,0.00027267,2]
[422629232,1779174642000,-1500.0,0.00027397,2]
[422629228,1779174642000,-300.0,0.00027267,2]
[422629231,1779174642000,-5151.04558368,0.000273,2]
[422629229,1779174642000,-300.0,0.00027267,2]
[422629233,1779174642000,-1465.85,0.00027397,2]
[422629235,1779174642000,-749.6,0.00027397,2]
[422629234,1779174642000,-300.0,0.00027397,2]
[422629237,1779174642000,-254.52837,0.00027397,2]
[422629213,1779174642000,-200.0,0.00027216,2]
[422629211,1779174642000,-500.0,0.00027178,2]
[422629190,1779174642000,-1250.0,0.00026961,2]
[422629206,1779174642000,-2575.529742,0.0002701,2]
[422629205,1779174642000,-2000.0,0.00027,2]
[422629186,1779174642000,-1250.0,0.00026961,2]
[422629185,1779174642000,-1250.0,0.00026961,2]